Workbook

Sheet Лист1
B1: Учебный план по программе подготовки квалифицированных рабочих, служащих по профессии 13.01.10 Электромонтер по ремонту и обслуживанию электрооборудования
A4: Индекс | B4: Наименование | C4: Всего | D4: В т.ч. в форме практической подготовки | E4: Объем образовательной программы в академических часах | J4: 1семестр | K4: 2семестр | L4: 3семестр | M4: 4семестр
E5: Теоретические занятия | F5: Лабораторные и практические занятия | G5: Практики | H5: Самостоятельная работа | I5: Промежуточная аттестация
A6: 1 | B6: 2 | C6: 3 | D6: 4 | E6: 5 | F6: 6 | G6: 7 | H6: 8 | I6: 9 | J6: 10 | K6: 10 | L6: 10 | M6: 10
A7: Обязательная часть образовательной программы
A8: Блок ООД (10-11 класс) | C8: =C9+C10+C11+C12+C13+C14+C15+C16+C17+C18+C19+C20+C21+C22+C23 -> 1476 | D8: =D9+D10+D11+D12+D13+D14+D15+D16+D17+D18+D19+D20+D21+D22+D23 -> 254 | E8: 764 | F8: 712 | G8: 0 | H8: 0 | I8: 48 | J8: =J9+J10+J11+J12+J13+J14+J15+J16+J17+J18+J19+J20+J21+J22+J23 -> 538 | K8: =K9+K10+K11+K12+K13+K14+K15+K16+K17+K18+K19+K20+K21+K22+K23 -> 668 | L8: 188 | M8: 82
A9: ООД1 | B9: Русский язык | C9: 74 | D9: 16 | E9: 16 | F9: 58 | I9: 12 | J9: 74
A10: ООД2 | B10: Литература | C10: 108 | D10: 26 | E10: 36 | F10: 72 | J10: 36 | K10: 72
A11: ООД3 | B11: Иностранный язык | C11: 80 | D11: 16 | F11: 80 | J11: 20 | K11: 20 | L11: 20 | M11: 20
A12: ООД4 | B12: Математика(углубленно) | C12: 288 | D12: 32 | E12: 160 | F12: 128 | I12: 12 | J12: 54 | K12: 40 | L12: 132 | M12: 62
A13: ООД5 | B13: История | C13: 136 | D13: 26 | E13: 136 | J13: 58 | K13: 78
A14: ООД6 | B14: Физическая культура | C14: 72 | E14: 2 | F14: 70 | J14: 34 | K14: 38
A15: ООД7 | B15: Основы безопасности жизнедеятельности и ЗР | C15: 68 | D15: 16 | E15: 38 | F15: 30 | J15: 34 | K15: 34
A16: ООД8 | B16: География | C16: 72 | D16: 10 | E16: 46 | F16: 26 | J16: 34 | K16: 38
A17: ООД9 | B17: Обществознание (включая экономику и право) | C17: 72 | D17: 10 | E17: 52 | F17: 20 | J17: 18 | K17: 54
A18: ООД 10 | B18: Биология | C18: 72 | D18: 6 | E18: 52 | F18: 20 | J18: 16 | K18: 56
A19: ООД 11 | B19: Физика (углубленно) | C19: 180 | D19: 32 | E19: 98 | F19: 82 | I19: 12 | J19: 88 | K19: 56 | L19: 36
A20: ООД 12 | B20: Информатика | C20: 108 | D20: 32 | E20: 50 | F20: 58 | I20: 12 | J20: 40 | K20: 68
A21: ООД 13 | B21: Химия | C21: 72 | D21: 16 | E21: 46 | F21: 26 | J21: 16 | K21: 56
A22: ООД 14 | B22: Родная литература | C22: 42 | D22: 16 | F22: 42 | J22: 16 | K22: 26
A23: ООД 15 | B23: Выполнение индивидуального проекта | C23: 32 | E23: 32 | K23: 32
A24: СГ.00 | B24: Социально гуманитарный цикл | C24: =C25+C26+C27+C28+C29+C30 -> 216 | D24: =D25+D26+D27+D28+D29+D30 -> 66 | E24: 82 | F24: 127 | G24: 0 | H24: 0 | I24: 0 | J24: 0 | K24: =K25+K26 -> 72 | L24: =L25+L26+L27+L28+L29+L30 -> 72 | M24: =M25+M26+M27+M28+M29+M30 -> 72
A25: СГ.01 | B25: История России | C25: 36 | D25: 6 | E25: 18 | F25: 11 | K25: 36
A26: СГ.02 | B26: Иностранный язык в профессиональной деятельности | C26: 36 | D26: 18 | E26: 16 | F26: 20 | K26: 36
A27: СГ.03 | B27: Безопасность жизнедеятельности | C27: 36 | D27: 18 | E27: 16 | F27: 20 | L27: 36
A28: СГ.04 | B28: Физическая культура | C28: 36 | F28: 36 | L28: 36
A29: СГ.05 | B29: Основы бережливого производства | C29: 36 | D29: 18 | E29: 16 | F29: 20 | M29: 36
A30: СГ.06 | B30: Основы финансовой грамотности | C30: 36 | D30: 6 | E30: 16 | F30: 20 | M30: 36
A31: ОПБ | B31: Обязательный профессиональный блок | C31: =C32+C33+C34+C35+C36+C37+C38 -> 252 | D31: =D32+D33+D34+D35+D36+D37+D38 -> 76 | E31: 112 | F31: 140 | G31: 0 | H31: 16 | I31: 7 | J31: 52 | K31: 20 | L31: 108 | M31: 72
A32: ОП.01 | B32: Техническое черчение и чтение чертежа | C32: 36 | D32: 12 | E32: 18 | F32: 18 | H32: 4 | I32: 1 | J32: 36
A33: ОП.02 | B33: Электротехника с основами электроники | C33: 36 | D33: 12 | E33: 18 | F33: 18 | H33: 2 | I33: 1 | L33: 36
A34: ОП.03 | B34: Основы технической механики | C34: 36 | D34: 16 | E34: 16 | F34: 20 | H34: 2 | I34: 1 | J34: 16 | K34: 20
A35: ОП.04 | B35: Электроматериаловедение | C35: 36 | D35: 12 | E35: 16 | F35: 20 | H35: 2 | I35: 1 | L35: 36
A36: ОП.05 | B36: Охрана труда | C36: 36 | D36: 12 | E36: 16 | F36: 20 | H36: 2 | I36: 1 | L36: 36
A37: ОП.06 | B37: Электробезопасность | C37: 36 | D37: 6 | E37: 16 | F37: 20 | H37: 2 | I37: 1 | M37: 36
A38: ОП.07 | B38: Электрические машины, электропривод и системы управления электроснабжением | C38: 36 | D38: 6 | E38: 12 | F38: 24 | H38: 2 | I38: 1 | M38: 36
A39: П | B39: Профессиональный блок | C39: =C40+C45+C50+C55 -> 932 | D39: =D40+D45+D50+D55 -> 758 | E39: =E40+E45+E50+E55 -> 140 | F39: =F40+F45+F50+F55 -> 120 | G39: =G40+G45+G50+G55 -> 648 | H39: =H40+H45+H50+H55 -> 0 | I39: =I40+I45+I50+I55 -> 24 | J39: =J40+J45+J50+J55 -> 22 | K39: =K40+K45+K50+K55 -> 104 | L39: =L40+L45+L50+L55 -> 244 | M39: =M40+M45+M50+M55 -> 562
A40: ПМ.01 | B40: Выполнение монтажа и наладки устройств электроснабжения и электрооборудования (по отраслям) | C40: =C41+C42+C43+C44 -> 240 | D40: 206 | E40: =E41+E42+E43+E44 -> 26 | F40: 28 | G40: 180 | H40: 0 | I40: 6 | J40: 22 | K40: 104 | L40: 114 | M40: 0
A41: МДК 01.01 | B41: Технология электромонтажных и сборочных работ устройствэлектроснабжения и электрооборудования | C41: 54 | D41: 26 | E41: 26 | F41: 28 | J41: 22 | K41: 32
A42: УП.01 | B42: Учебная практика | C42: 108 | D42: 108 | G42: 108 | K42: 36 | L42: 72
A43: ПП.01 | B43: Производственная практика | C43: 72 | D43: 72 | G43: 72 | K43: 36 | L43: 36
B44: Экзамен по модулю | C44: 6 | I44: 6 | L44: 6
A45: ПМ. 02 | B45: Выполнение тенического обслуживания устройств электроснабжения и электрооборудования (по отраслям) | C45: =C46+C47+C48+C49 -> 212 | D45: 168 | E45: 36 | F45: 26 | G45: 144 | H45: 0 | I45: 6 | J45: 0 | K45: 0 | L45: 0 | M45: 212
A46: МДК. 02.01 | B46: Технология обеспечения бесперебойной работы электрооборудования и электроустановок | C46: 62 | D46: 24 | E46: 36 | F46: 26 | M46: 62
A47: УП.02 | B47: Учебная практика | C47: 72 | D47: 72 | G47: 72 | M47: 72
A48: ПП.02 | B48: Производственная практика | C48: 72 | D48: 72 | G48: 72 | M48: 72
B49: Экзамен по модулю | C49: 6 | I49: 6 | M49: 6
A50: ПМ.03 | B50: Выполнение ремонта и работ по предупреждению аварий и неполадок устройств электроснабжения и электрооборудования (по отраслям) | C50: =C51+C52+C53+C54 -> 200 | D50: =D51+D52+D53 -> 170 | E50: 22 | F50: 28 | G50: 144 | I50: =I51+I52+I53+I54+I60 -> 6 | J50: =J51+J52+J53 -> 0 | K50: =K51+K52+K53 -> 0 | L50: =L51+L52+L53+L54 -> 36 | M50: =M51+M52+M53+M54 -> 164
A51: МДК 03.01 | B51: Технология ремонтных работ устройств электроснабжения и электрооборудования | C51: 50 | D51: 26 | E51: 22 | F51: 28 | M51: 50
A52: УП. 03 | B52: Учебная практика | C52: 72 | D52: 72 | G52: 72 | L52: 36 | M52: 36
A53: ПМ. 03 | B53: Производственная практика | C53: 72 | D53: 72 | G53: 72 | M53: 72
B54: Экзамен по модулю | C54: 6 | I54: 6 | M54: 6
A55: ПМ.04 | B55: Выполнение одной или нескольких рабочих профессий 19855 Электромонтер по ремонту воздушных линий электропередач | C55: =C56+C57+C58+C59 -> 280 | D55: 214 | E55: 56 | F55: 38 | G55: 180 | I55: =I56+I57+I58+I59+I65 -> 6 | J55: =J56+J57+J58 -> 0 | K55: 0 | L55: =L56+L57+L58+L59 -> 94 | M55: =M56+M57+M58+M59 -> 186
A56: МДК 04.01 | B56: Обслуживание воздушных линий электропередачи низкого напряжения | C56: 94 | D56: 34 | E56: 56 | F56: 38 | L56: 58 | M56: 36
A57: УП. 04 | B57: Учебная практика | C57: 108 | D57: 108 | G57: 108 | L57: 36 | M57: 72
A58: ПМ. 04 | B58: Производственная практика | C58: 72 | D58: 72 | G58: 72 | M58: 72
B59: Экзамен по модулю | C59: 6 | I59: 6 | M59: 6
A60: ФК | B60: Физическая культура | C60: 40 | F60: 40 | M60: 40
A61: ГИА.00 | B61: Государственная итоговая аттестация | C61: 36 | I61: 36 | M61: 36
A62: Итого: | C62: =C39+C31+C24+C8+C60+C61 -> 2952 | D62: 1186 | E62: 1105 | F62: 1139 | G62: =G39+G31+G8+G61 -> 648 | H62: 16 | I62: 60 | J62: =J39+J31+J24+J8 -> 612 | K62: =K39+K31+K24+K8 -> 864 | L62: =L39+L31+L24+L8 -> 612 | M62: =M61+M60+M39+M31+M24+M8 -> 864
A63: Консультация на учебную группу по 4 часа на одного обучающегося | G63: Дисциплины и мдк | J63: 612 | K63: 864 | L63: 396 | M63: 396
G64: УП | K64: 36 | L64: =L57+L52+L42 -> 144 | M64: 360
A65: Государственная итоговая аттестация в виде Демонстрационного экзамена | G65: ПП | K65: 36 | L65: 36 | M65: 216
G66: экзамены | J66: 1 | K66: 1 | L66: 2 | M66: 4
G67: ДЗ | J67: 1 | K67: 14 | L67: 7 | M67: 15
G68: зачеты
